fUST/lending_fUST_20260513
["ID","MTS","AMOUNT","RATE_DAILY","PERIOD"]
[422171996,1778645444000,-501.70919742,0.00010958,2]
[422172008,1778645444000,-500.0,0.00010958,2]
[422172007,1778645444000,-1193.64,0.00010958,2]
[422172016,1778645444000,-954.08,0.00010958,2]
[422172012,1778645444000,-500.0,0.00010958,2]
[422172045,1778645444000,-4388.9582464,0.00010958,2]
[422172043,1778645444000,-507.94309268,0.00010958,2]
[422172042,1778645444000,-2209.77,0.00010958,2]
[422172044,1778645444000,-500.0,0.00010958,2]
[422172041,1778645444000,-1744.85,0.00010958,2]
[422172040,1778645444000,-812.07,0.00010958,2]
[422172039,1778645444000,-2379.09,0.00010958,2]
[422172037,1778645444000,-300.0,0.00010958,2]
[422172038,1778645444000,-90.75071108,0.00010958,2]
[422172033,1778645444000,-500.0,0.00010958,2]
[422172036,1778645444000,-382.91828592,0.00010958,2]
[422172034,1778645444000,-503.26241251,0.00010958,2]
[422172031,1778645444000,-1919.96,0.00010958,2]
[422172032,1778645444000,-500.0,0.00010958,2]
[422172035,1778645444000,-1276.731003,0.00010958,2]
[422172028,1778645444000,-500.0,0.00010958,2]
[422172018,1778645444000,-500.0,0.00010958,2]
[422172030,1778645444000,-631.06,0.00010958,2]
[422172019,1778645444000,-500.0,0.00010958,2]
[422172017,1778645444000,-500.0,0.00010958,2]
[422172020,1778645444000,-2013.08,0.00010958,2]
[422172021,1778645444000,-500.0,0.00010958,2]
[422172026,1778645444000,-1019.35,0.00010958,2]
[422172015,1778645444000,-2020.92,0.00010958,2]
[422172025,1778645444000,-1166.9,0.00010958,2]
[422172022,1778645444000,-500.0,0.00010958,2]
[422172024,1778645444000,-500.0,0.00010958,2]
[422172027,1778645444000,-500.0,0.00010958,2]
[422172029,1778645444000,-2408.4,0.00010958,2]
[422172023,1778645444000,-6111.51,0.00010958,2]
[422172065,1778645447000,-4964.89,0.00010958,2]
[422172064,1778645447000,-500.0,0.00010958,2]
[422172061,1778645447000,-500.0,0.00010958,2]
[422172063,1778645447000,-500.0,0.00010958,2]
[422172058,1778645447000,-3560.9341853,0.00010958,2]
[422172060,1778645447000,-4707.96,0.00010958,2]
[422172057,1778645447000,-647.08482513,0.00010958,2]
[422172055,1778645447000,-2348.9617536,0.00010958,2]
[422172056,1778645447000,-1278.05,0.00010958,2]
[422172070,1778645447000,-1607.56,0.00010958,2]
[422172059,1778645447000,-1804.6258147,0.00010958,2]
[422172068,1778645447000,-1228.05,0.00010958,2]
[422172062,1778645447000,-500.0,0.00010958,2]
[422172069,1778645447000,-500.0,0.00010958,2]
[422172066,1778645447000,-1994.0,0.00010958,2]
[422172079,1778645447000,-3990.8,0.00010958,2]
[422172080,1778645447000,-5630.60080932,0.00010958,2]
[422172078,1778645447000,-1682.82,0.00010958,2]
[422172076,1778645447000,-1191.34,0.00010958,2]
[422172077,1778645447000,-500.0,0.00010958,2]
[422172073,1778645447000,-851.03,0.00010958,2]
[422172074,1778645447000,-500.0,0.00010958,2]
[422172072,1778645447000,-500.0,0.00010958,2]
[422172071,1778645447000,-500.0,0.00010958,2]
[422172067,1778645447000,-500.0,0.00010958,2]
[422172075,1778645447000,-803.37,0.00010958,2]
[422172531,1778646643000,-181.28361664,9.743e-05,2]
[422172517,1778646643000,-5000.0,9.057e-05,2]
[422172519,1778646643000,-414.127585,9.102e-05,2]
[422172523,1778646643000,-19.8818766,9.148e-05,2]
[422172533,1778646643000,-500.0,9.999e-05,2]
[422172529,1778646643000,-300.0,9.239e-05,2]
[422172535,1778646643000,-576.83151597,9.999e-05,2]
[422172527,1778646643000,-3328.63341422,9.148e-05,2]
[422172537,1778646643000,-2264.08077982,0.0001,2]
[422172525,1778646643000,-585.97660249,9.148e-05,2]
[422172554,1778646643000,-9881.11499437,0.0001,2]
[422172557,1778646643000,-628.1247688,0.0001,2]
[422172550,1778646643000,-543.38155845,0.0001,2]
[422172552,1778646643000,-79129.36806746,0.0001,2]
[422172564,1778646643000,-388.39333647,0.0001,2]
[422172566,1778646643000,-541.65,0.0001,2]
[422172568,1778646643000,-642.99355765,0.0001,2]
[422172562,1778646643000,-424.17702131,0.0001,2]
[422172521,1778646643000,-1200.0,9.147e-05,2]
[422172936,1778646646000,-704.45640802,0.0001,2]
[422172930,1778646646000,-7833.92034401,0.0001,2]
[422172927,1778646646000,-5000.0,8.966e-05,2]
[422172932,1778646646000,-541.03249352,0.0001,2]
[422172968,1778646646000,-45268.54686121,0.0001,2]
[422172934,1778646646000,-9758.58130913,0.0001,2]
[422174259,1778646707000,151.0,0.00014,30]
[422174283,1778646747000,151.0,0.00014,30]
[422174285,1778646787000,151.0,0.00014,30]
[422174366,1778647832000,-1456.72154225,7.957e-05,2]
[422174368,1778647832000,-3237.61020975,7.957e-05,2]
[422174367,1778647832000,-305.668248,7.957e-05,2]
[422174369,1778647832000,-5000.0,8.037e-05,2]
[422174373,1778647832000,-2439.65535982,8.283e-05,2]
[422174371,1778647832000,-225.43523458,8.182e-05,2]
[422174372,1778647832000,-1713.7101366,8.183e-05,2]
[422174374,1778647832000,-397.91517571,8.283e-05,2]
[422174370,1778647832000,-74.56476542,8.182e-05,2]
[422174710,1778647840000,-586.50006701,8.283e-05,2]
[422174712,1778647840000,-412.90098446,8.325e-05,2]
[422174714,1778647840000,-3699.54853875,8.383e-05,2]
[422174718,1778647840000,-188.52,8.579e-05,16]
[422174717,1778647840000,-3975.36920832,8.483e-05,2]
[422174720,1778647840000,-1511.08271062,8.583e-05,2]
[422175931,1778647993000,3000.0,0.00014,30]
[422175932,1778648194000,504.74624958,0.00013956,30]
[422175933,1778648208000,151.0,0.00014,30]
[422175934,1778648237000,151.0,0.00014,30]
[422175936,1778648287000,151.0,0.00014,30]
[422175939,1778648317000,151.0,0.00014,30]
[422175941,1778648357000,151.0,0.00014,30]
[422175942,1778648397000,151.0,0.00014,30]
[422175946,1778648427000,151.0,0.00014,30]
[422175949,1778648496000,327.0,0.00014,30]
[422175965,1778648813000,152.0,0.00013999,30]
[422175966,1778648814000,152.0,0.00013999,30]
[422175969,1778648889000,160.0,0.0001399,30]
[422175977,1778648953000,160.0,0.0001399,30]
[422176008,1778649032000,-1327.29125401,7.269e-05,2]
[422176014,1778649032000,-763.77151649,7.269e-05,2]
[422176028,1778649032000,-78.73300852,7.342e-05,2]
[422176025,1778649032000,-2502.63138397,7.269e-05,2]
[422176023,1778649032000,-406.30584553,7.269e-05,2]
[422176116,1778649038000,-4701.40498892,8.983e-05,2]
[422176104,1778649038000,-184.3565779,8.6e-05,2]
[422176118,1778649038000,-5564.22761664,9.083e-05,2]
[422176126,1778649038000,-1188.0815803,9.798e-05,2]
[422176121,1778649038000,-495.71747792,9.454e-05,2]
[422176114,1778649038000,-433.02607956,8.983e-05,2]
[422176123,1778649038000,-129543.47437826,9.698e-05,2]
[422176111,1778649038000,-5078.79139424,8.883e-05,2]
[422176109,1778649038000,-4802.96291737,8.783e-05,2]
[422176074,1778649038000,-580.46239662,7.342e-05,2]
[422176106,1778649038000,-4527.01054765,8.683e-05,2]
[422176096,1778649038000,-300.0,7.814e-05,2]
[422176094,1778649038000,-420.09955756,7.454e-05,2]
[422176090,1778649038000,-2117.06947578,7.342e-05,2]
[422176092,1778649038000,-972.30488928,7.424e-05,2]
[422176102,1778649038000,-2740.10716737,8.583e-05,2]
[422176100,1778649038000,-178.61179175,8.226e-05,2]
[422176087,1778649038000,-820.992352,7.342e-05,2]
[422176120,1778649038000,-6678.48707559,9.183e-05,2]
[422176108,1778649038000,-151.0,8.771e-05,2]
[422176127,1778649038000,-1922.3733506,9.798e-05,2]
[422176098,1778649038000,-3257.5514839,7.815e-05,2]
[422176131,1778649038000,-1413.67673349,9.998e-05,2]
[422176129,1778649038000,-45691.280753,9.798e-05,2]
[422176165,1778649038000,-1413.67673349,9.998e-05,2]
[422176173,1778649038000,-8555.15200035,0.00010293,2]
[422176169,1778649038000,-1413.67673349,9.998e-05,2]
[422176171,1778649038000,-290658.28123248,0.0001,2]
[422176167,1778649038000,-1413.67673349,9.998e-05,2]
[422176161,1778649038000,-1413.67673349,9.998e-05,2]
[422176159,1778649038000,-1413.67673349,9.998e-05,2]
[422176155,1778649038000,-1413.67673349,9.998e-05,2]
[422176157,1778649038000,-1413.67673349,9.998e-05,2]
[422176163,1778649038000,-1413.67673349,9.998e-05,2]
[422176143,1778649038000,-1413.67673349,9.998e-05,2]
[422176141,1778649038000,-1413.67673349,9.998e-05,2]
[422176139,1778649038000,-1413.67673349,9.998e-05,2]
[422176135,1778649038000,-1413.67673349,9.998e-05,2]
[422176133,1778649038000,-520.76658283,9.998e-05,2]
[422176137,1778649038000,-1413.67673349,9.998e-05,2]
[422176147,1778649038000,-1413.67673349,9.998e-05,2]
[422176151,1778649038000,-1413.67673349,9.998e-05,2]
[422176149,1778649038000,-1413.67673349,9.998e-05,2]
[422176153,1778649038000,-1413.67673349,9.998e-05,2]
[422176145,1778649038000,-1413.67673349,9.998e-05,2]
[422176258,1778649039000,-562.45,0.00010958,2]
[422176256,1778649039000,-894.98,0.00010958,2]
[422176257,1778649039000,-427.77150068,0.00010958,2]
[422176254,1778649039000,-500.0,0.00010958,2]
[422176255,1778649039000,-346.33909023,0.00010958,2]
[422176249,1778649039000,-500.0,0.00010958,2]
[422176251,1778649039000,-704.93,0.00010958,2]
[422176247,1778649039000,-500.0,0.00010958,2]
[422176237,1778649039000,-204.5246928,0.00010958,2]
[422176245,1778649039000,-500.0,0.00010958,2]
[422176246,1778649039000,-561.92,0.00010958,2]
[422176253,1778649039000,-700.89415587,0.00010958,2]
[422176263,1778649039000,-498.63347256,0.00010958,2]
[422176269,1778649039000,-631.81,0.00010958,2]
[422176259,1778649039000,-2483.35,0.00010958,2]
[422176262,1778649039000,-500.0,0.00010958,2]
[422176260,1778649039000,-500.0,0.00010958,2]
[422176264,1778649039000,-500.0,0.00010958,2]
[422176266,1778649039000,-500.0,0.00010958,2]
[422176265,1778649039000,-500.0,0.00010958,2]
[422176268,1778649039000,-971.65,0.00010958,2]
[422176267,1778649039000,-645.1,0.00010958,2]
[422176243,1778649039000,-500.0,0.00010958,2]
[422176270,1778649039000,-500.0,0.00010958,2]
[422176271,1778649039000,-539.48349742,0.00010958,2]
[422176272,1778649039000,-575.83,0.00010958,2]
[422176273,1778649039000,-785.88,0.00010958,2]
[422176275,1778649039000,-500.0,0.00010958,2]
[422176261,1778649039000,-500.0,0.00010958,2]
[422176241,1778649039000,-518.42191377,0.00010958,2]
[422176223,1778649039000,-2220.232,0.00010903,2]
[422176235,1778649039000,-500.0,0.00010958,2]
[422176277,1778649039000,-500.0,0.00010958,2]
[422176179,1778649039000,-163.02422954,0.00010607,2]
[422176177,1778649039000,-160.0,0.000106,2]
[422176175,1778649039000,-160.0,0.000106,2]
[422176181,1778649039000,-162.81698026,0.00010607,2]
[422176183,1778649039000,-152.0,0.00010635,2]
[422176200,1778649039000,-670.11,0.0001083,2]
[422176198,1778649039000,-160.0,0.000108,2]
[422176204,1778649039000,-161.63868993,0.00010842,2]
[422176202,1778649039000,-160.0,0.00010842,2]
[422176185,1778649039000,-152.0,0.00010649,7]
[422176187,1778649039000,-152.0,0.00010649,7]
[422176191,1778649039000,-8906.75813033,0.000107,2]
[422176239,1778649039000,-500.0,0.00010958,2]
[422176193,1778649039000,-152.0,0.00010711,2]
[422176206,1778649039000,-160.0,0.00010842,2]
[422176210,1778649039000,-654.7,0.0001087,2]
[422176208,1778649039000,-640.79,0.00010843,2]
[422176212,1778649039000,-160.0,0.000109,2]
[422176214,1778649039000,-161.0,0.000109,3]
[422176221,1778649039000,-1420.69,0.00010903,2]
[422176227,1778649039000,-155.0,0.00010957,2]
[422176216,1778649039000,-161.406633,0.000109,3]
[422176225,1778649039000,-155.0,0.00010957,2]
[422176218,1778649039000,-500.0,0.00010903,2]
[422176229,1778649039000,-1678.795,0.00010958,2]
[422176231,1778649039000,-1412.5588,0.00010958,2]
[422176233,1778649039000,-525.7091,0.00010958,2]
[422176195,1778649039000,-160.0,0.000108,2]
[422176278,1778649039000,-2304.55,0.00010958,2]
[422176189,1778649039000,-152.0,0.00010652,7]
[422176276,1778649039000,-512.89,0.00010958,2]
[422176315,1778649039000,-500.0,0.00010958,2]
[422176314,1778649039000,-500.0,0.00010958,2]
[422176318,1778649039000,-500.0,0.00010958,2]
[422176311,1778649039000,-500.0,0.00010958,2]
[422176313,1778649039000,-500.0,0.00010958,2]
[422176312,1778649039000,-500.0,0.00010958,2]
[422176317,1778649039000,-500.0,0.00010958,2]
[422176320,1778649039000,-500.0,0.00010958,2]
[422176319,1778649039000,-500.0,0.00010958,2]
[422176322,1778649039000,-500.0,0.00010958,2]
[422176331,1778649039000,-500.0,0.00010958,2]
[422176325,1778649039000,-1185.57,0.00010958,2]
[422176321,1778649039000,-500.0,0.00010958,2]
[422176316,1778649039000,-500.0,0.00010958,2]
[422176328,1778649039000,-500.0,0.00010958,2]
[422176324,1778649039000,-500.0,0.00010958,2]
[422176323,1778649039000,-500.0,0.00010958,2]
[422176329,1778649039000,-500.0,0.00010958,2]
[422176330,1778649039000,-1435.08,0.00010958,2]
[422176332,1778649039000,-671.46,0.00010958,2]
[422176333,1778649039000,-500.0,0.00010958,2]
[422176334,1778649039000,-500.0,0.00010958,2]
[422176336,1778649039000,-500.0,0.00010958,2]
[422176339,1778649039000,-500.0,0.00010958,2]
[422176337,1778649039000,-500.0,0.00010958,2]
[422176335,1778649039000,-500.0,0.00010958,2]
[422176338,1778649039000,-1403.7,0.00010958,2]
[422176274,1778649039000,-1303.87,0.00010958,2]
[422176327,1778649039000,-500.0,0.00010958,2]
[422176308,1778649039000,-500.0,0.00010958,2]
[422176326,1778649039000,-500.0,0.00010958,2]
[422176309,1778649039000,-331.49075558,0.00010958,2]
[422176279,1778649039000,-500.0,0.00010958,2]
[422176310,1778649039000,-1000.0,0.00010958,2]
[422176281,1778649039000,-491.89783543,0.00010958,2]
[422176280,1778649039000,-536.18,0.00010958,2]
[422176282,1778649039000,-1152.28,0.00010958,2]
[422176286,1778649039000,-500.0,0.00010958,2]
[422176284,1778649039000,-500.0,0.00010958,2]
[422176283,1778649039000,-500.0,0.00010958,2]
[422176285,1778649039000,-1039.39,0.00010958,2]
[422176290,1778649039000,-500.0,0.00010958,2]
[422176288,1778649039000,-934.78,0.00010958,2]
[422176289,1778649039000,-640.46,0.00010958,2]
[422176291,1778649039000,-500.0,0.00010958,2]
[422176292,1778649039000,-156.63519331,0.00010958,2]
[422176294,1778649039000,-1555.03,0.00010958,2]
[422176287,1778649039000,-1416.71,0.00010958,2]
[422176306,1778649039000,-915.09,0.00010958,2]
[422176307,1778649039000,-500.0,0.00010958,2]
[422176293,1778649039000,-2385.02,0.00010958,2]
[422176304,1778649039000,-577.98,0.00010958,2]
[422176303,1778649039000,-246.40322743,0.00010958,2]
[422176302,1778649039000,-500.0,0.00010958,2]
[422176305,1778649039000,-654.21,0.00010958,2]
[422176301,1778649039000,-500.0,0.00010958,2]
[422176298,1778649039000,-2401.62,0.00010958,2]
[422176299,1778649039000,-500.0,0.00010958,2]
[422176297,1778649039000,-500.0,0.00010958,2]
[422176295,1778649039000,-500.0,0.00010958,2]
[422176296,1778649039000,-500.0,0.00010958,2]
[422176300,1778649039000,-500.0,0.00010958,2]
[422176359,1778649040000,-1159.95,0.00010958,2]
[422176358,1778649040000,-500.0,0.00010958,2]
[422176357,1778649040000,-500.0,0.00010958,2]
[422176360,1778649040000,-500.0,0.00010958,2]
[422176361,1778649040000,-500.0,0.00010958,2]
[422176368,1778649040000,-500.0,0.00010958,2]
[422176367,1778649040000,-558.21904286,0.00010958,2]
[422176365,1778649040000,-819.91,0.00010958,2]
[422176363,1778649040000,-500.0,0.00010958,2]
[422176364,1778649040000,-2433.05,0.00010958,2]
[422176366,1778649040000,-2089.97,0.00010958,2]
[422176355,1778649040000,-500.0,0.00010958,2]
[422176362,1778649040000,-653.09,0.00010958,2]
[422176356,1778649040000,-1964.96,0.00010958,2]
[422176341,1778649040000,-500.0,0.00010958,2]
[422176353,1778649040000,-500.0,0.00010958,2]
[422176351,1778649040000,-500.0,0.00010958,2]
[422176352,1778649040000,-521.64,0.00010958,2]
[422176350,1778649040000,-500.0,0.00010958,2]
[422176347,1778649040000,-1018.55,0.00010958,2]
[422176348,1778649040000,-1281.58,0.00010958,2]
[422176345,1778649040000,-500.0,0.00010958,2]
[422176346,1778649040000,-2066.72,0.00010958,2]
[422176343,1778649040000,-500.0,0.00010958,2]
[422176340,1778649040000,-500.0,0.00010958,2]
[422176344,1778649040000,-2758.89,0.00010958,2]
[422176342,1778649040000,-500.0,0.00010958,2]
[422176369,1778649040000,-581.07,0.00010958,2]
[422176354,1778649040000,-6108.45,0.00010958,2]
[422176370,1778649040000,-500.0,0.00010958,2]
[422176349,1778649040000,-500.0,0.00010958,2]
[422176372,1778649040000,-500.0,0.00010958,2]
[422176371,1778649040000,-2404.97,0.00010958,2]
[422176399,1778649040000,-500.0,0.00010958,2]
[422176400,1778649040000,-1737.7,0.00010958,2]
[422176398,1778649040000,-37003.84,0.00010958,2]
[422176397,1778649040000,-500.0,0.00010958,2]
[422176396,1778649040000,-500.0,0.00010958,2]
[422176395,1778649040000,-500.0,0.00010958,2]
[422176394,1778649040000,-500.0,0.00010958,2]
[422176390,1778649040000,-2035.91,0.00010958,2]
[422176392,1778649040000,-500.0,0.00010958,2]
[422176388,1778649040000,-790.73,0.00010958,2]
[422176389,1778649040000,-1665.58,0.00010958,2]
[422176393,1778649040000,-1197.72,0.00010958,2]
[422176385,1778649040000,-500.0,0.00010958,2]
[422176401,1778649040000,-1033.25866462,0.00010958,2]
[422176387,1778649040000,-864.5,0.00010958,2]
[422176375,1778649040000,-500.0,0.00010958,2]
[422176374,1778649040000,-2242.7,0.00010958,2]
[422176376,1778649040000,-6791.75,0.00010958,2]
[422176391,1778649040000,-4991.57,0.00010958,2]
[422176379,1778649040000,-500.0,0.00010958,2]
[422176378,1778649040000,-1224.79,0.00010958,2]
[422176377,1778649040000,-1797.15,0.00010958,2]
[422176373,1778649040000,-504.35754485,0.00010958,2]
[422176382,1778649040000,-524.23,0.00010958,2]
[422176381,1778649040000,-500.0,0.00010958,2]
[422176384,1778649040000,-4698.22,0.00010958,2]
[422176383,1778649040000,-5370.37,0.00010958,2]
[422176386,1778649040000,-500.0,0.00010958,2]
[422176380,1778649040000,-199.929698,0.00010958,2]
[422176427,1778649043000,-3185.08969563,0.00010958,2]
[422176428,1778649043000,-499.48143251,0.00010958,2]
[422176426,1778649043000,-659.7749991,0.00010958,2]
[422176424,1778649043000,-443.0,0.00010903,2]
[422176425,1778649043000,-1590.89669367,0.00010958,2]
[422176423,1778649043000,-152.0,9.823e-05,2]
[422176446,1778649047000,-2594.48434591,9.725e-05,2]
[422176447,1778649047000,-218.46851447,0.00010958,2]
[422176448,1778649047000,-3911.27083804,0.00010958,2]
[422176456,1778649633000,152.0,0.00013998,30]
[422176574,1778650235000,-5000.0,5.841e-05,2]
[422176575,1778650236000,-406.31779836,5.9e-05,2]
[422176589,1778650238000,-300.0,7.068e-05,2]
[422176599,1778650238000,-300.0,7.068e-05,2]
[422176586,1778650238000,-300.0,7.068e-05,2]
[422176588,1778650238000,-300.0,7.068e-05,2]
[422176598,1778650238000,-300.0,7.068e-05,2]
[422176597,1778650238000,-300.0,7.068e-05,2]
[422176581,1778650238000,-1200.0,6.019e-05,2]
[422176583,1778650238000,-300.0,6.08e-05,2]
[422176585,1778650238000,-606.7,7e-05,2]
[422176582,1778650238000,-426.78512471,6.051e-05,2]
[422176584,1778650238000,-420.0,6.688e-05,2]
[422176580,1778650238000,-846.63228893,5.96e-05,2]
[422176579,1778650238000,-4593.68220164,5.9e-05,2]
[422176590,1778650238000,-300.0,7.068e-05,2]
[422176595,1778650238000,-300.0,7.068e-05,2]
[422176587,1778650238000,-300.0,7.068e-05,2]
[422176591,1778650238000,-300.0,7.068e-05,2]
[422176594,1778650238000,-300.0,7.068e-05,2]
[422176608,1778650238000,-1000.0,9.594e-05,2]
[422176609,1778650238000,-152.0,9.854e-05,2]
[422176606,1778650238000,-503.60644716,8.051e-05,2]
[422176610,1778650238000,-580.42776961,0.00010051,2]
[422176612,1778650238000,-162.380719,0.00010409,2]
[422176613,1778650238000,-160.90276947,0.00010409,2]
[422176605,1778650238000,-251.66985036,7.954e-05,2]
[422176602,1778650238000,-300.0,7.068e-05,2]
[422176603,1778650238000,-600.0,7.208e-05,2]
[422176604,1778650238000,-720.0,7.929e-05,2]
[422176601,1778650238000,-300.0,7.068e-05,2]
[422176607,1778650238000,-864.0,8.722e-05,2]
[422176600,1778650238000,-300.0,7.068e-05,2]
[422176611,1778650238000,-500.0,0.00010409,2]
[422176596,1778650238000,-300.0,7.068e-05,2]
[422176657,1778650239000,-22647.45156064,0.00010758,2]
[422176655,1778650239000,-152.0,0.00010745,2]
[422176653,1778650239000,-160.0,0.00010727,2]
[422176650,1778650239000,-152.0,0.00010726,2]
[422176649,1778650239000,-152.0,0.00010726,2]
[422176648,1778650239000,-644.79446246,0.00010684,2]
[422176641,1778650239000,-621.78829552,0.00010629,2]
[422176643,1778650239000,-152.0,0.0001065,7]
[422176646,1778650239000,-152.0,0.00010656,7]
[422176644,1778650239000,-152.0,0.00010653,7]
[422176656,1778650239000,-152.0,0.00010745,2]
[422176652,1778650239000,-161.63868993,0.00010727,2]
[422176658,1778650239000,-9497.83729019,0.000109,2]
[422176664,1778650239000,-500.0,0.00010958,2]
[422176661,1778650239000,-500.0,0.00010958,2]
[422176660,1778650239000,-471.04881598,0.00010957,2]
[422176659,1778650239000,-500.0,0.00010957,2]
[422176665,1778650239000,-500.0,0.00010958,2]
[422176654,1778650239000,-668.65185757,0.00010739,2]
[422176662,1778650239000,-3877.5646,0.00010958,2]
[422176645,1778650239000,-152.0,0.00010653,7]
[422176667,1778650239000,-698.29994798,0.00010958,2]
[422176677,1778650239000,-944.11,0.00010958,2]
[422176672,1778650239000,-500.0,0.00010958,2]
[422176670,1778650239000,-1516.1,0.00010958,2]
[422176668,1778650239000,-1162.75,0.00010958,2]
[422176669,1778650239000,-500.0,0.00010958,2]
[422176663,1778650239000,-635.17,0.00010958,2]
[422176642,1778650239000,-152.0,0.0001065,7]
[422176634,1778650239000,-151.0,0.00010409,2]
[422176647,1778650239000,-500.0,0.00010683,2]
[422176666,1778650239000,-500.0,0.00010958,2]
[422176615,1778650239000,-151.0,0.00010409,2]
[422176625,1778650239000,-151.0,0.00010409,2]
[422176616,1778650239000,-151.0,0.00010409,2]
[422176626,1778650239000,-151.0,0.00010409,2]
[422176614,1778650239000,-537.6845,0.00010409,2]
[422176621,1778650239000,-151.0,0.00010409,2]
[422176617,1778650239000,-151.0,0.00010409,2]
[422176623,1778650239000,-217.5174099,0.00010409,2]
[422176618,1778650239000,-151.0,0.00010409,2]
[422176624,1778650239000,-151.0,0.00010409,2]
[422176620,1778650239000,-151.0,0.00010409,2]
[422176619,1778650239000,-151.0,0.00010409,2]
[422176622,1778650239000,-151.0,0.00010409,2]
[422176637,1778650239000,-578.20924308,0.00010519,2]
[422176636,1778650239000,-557.5788265,0.00010464,2]
[422176628,1778650239000,-151.0,0.00010409,2]
[422176639,1778650239000,-244.0,0.00010554,2]
[422176629,1778650239000,-151.0,0.00010409,2]
[422176627,1778650239000,-151.0,0.00010409,2]
[422176638,1778650239000,-1000.0,0.00010554,2]
[422176633,1778650239000,-151.0,0.00010409,2]
[422176635,1778650239000,-161.19271659,0.00010409,2]
[422176630,1778650239000,-151.0,0.00010409,2]
[422176631,1778650239000,-151.0,0.00010409,2]
[422176632,1778650239000,-151.0,0.00010409,2]
[422176640,1778650239000,-599.60298507,0.00010574,2]
[422176651,1778650239000,-160.0,0.00010727,2]
[422176671,1778650239000,-500.0,0.00010958,2]
[422176678,1778650239000,-500.0,0.00010958,2]
[422176676,1778650239000,-500.0,0.00010958,2]
[422176705,1778650239000,-2230.64329525,0.00010958,2]
[422176708,1778650239000,-500.0,0.00010958,2]
[422176711,1778650239000,-644.83,0.00010958,2]
[422176709,1778650239000,-500.0,0.00010958,2]
[422176710,1778650239000,-960.84,0.00010958,2]
[422176712,1778650239000,-500.0,0.00010958,2]
[422176715,1778650239000,-1552.73,0.00010958,2]
[422176713,1778650239000,-500.0,0.00010958,2]
[422176716,1778650239000,-500.0,0.00010958,2]
[422176714,1778650239000,-2452.31,0.00010958,2]
[422176718,1778650239000,-500.0,0.00010958,2]
[422176729,1778650239000,-502.15481695,0.00010958,2]
[422176728,1778650239000,-500.0,0.00010958,2]
[422176717,1778650239000,-500.0,0.00010958,2]
[422176719,1778650239000,-1486.18,0.00010958,2]
[422176720,1778650239000,-1189.48,0.00010958,2]
[422176721,1778650239000,-500.0,0.00010958,2]
[422176727,1778650239000,-502.40648648,0.00010958,2]
[422176726,1778650239000,-500.0,0.00010958,2]
[422176722,1778650239000,-500.0,0.00010958,2]
[422176723,1778650239000,-500.0,0.00010958,2]
[422176724,1778650239000,-2468.22,0.00010958,2]
[422176725,1778650239000,-501.90645368,0.00010958,2]
[422176730,1778650239000,-618.71154885,0.00010958,2]
[422176733,1778650239000,-501.2808006,0.00010958,2]
[422176732,1778650239000,-500.0,0.00010958,2]
[422176675,1778650239000,-1324.63705931,0.00010958,2]
[422176706,1778650239000,-1166.77,0.00010958,2]
[422176707,1778650239000,-500.0,0.00010958,2]
[422176734,1778650239000,-1117.92,0.00010958,2]
[422176695,1778650239000,-189.05,0.00010958,2]
[422176673,1778650239000,-500.0,0.00010958,2]
[422176674,1778650239000,-237.9,0.00010958,2]
[422176731,1778650239000,-502.37271605,0.00010958,2]
[422176679,1778650239000,-500.0,0.00010958,2]
[422176682,1778650239000,-500.0,0.00010958,2]
[422176681,1778650239000,-500.0,0.00010958,2]